bitfinex-derivatives/quotes_SOLF0:USTF0_20250909
["timestamp","ask_amount","ask_price","bid_price","bid_amount"]
[1757382900846,5.23925372,213.36,213.31,1.73670401]
[1757382901050,7.85888058,213.39,213.33,4.16398429]
[1757382901051,12.53925372,213.39,213.33,4.16398429]
[1757382901240,7.3,213.39,213.33,4.16398429]
[1757382901445,12.53925372,213.39,213.33,4.16398429]
[1757382901642,7.3,213.39,213.33,4.16398429]
[1757382902144,7.3,213.39,213.36,2.46]
[1757382902341,7.3,213.39,213.35,1.70398429]
[1757382902647,7.3,213.38,213.32,1.70398429]
[1757382902952,1.70398429,213.39,213.2,2.49]
[1757382902953,7.3,213.32,213.2,2.49]
[1757382903145,7.3,213.27,213.2,4.19398429]
[1757382904148,0.03205518,213.26,213.2,4.19398429]
[1757382905252,7.3,213.25,213.16,2.49]
[1757382905449,1.70398429,213.22,213.15,1.70398429]
[1757382905751,7.3,213.21,213.15,1.70398429]
[1757382906141,0.03555123,213.2,213.16,2.49]
[1757382906342,0.03555123,213.2,213.17,1.70398429]
[1757382906542,0.03555123,213.2,213.18,2.49]
[1757382906752,0.03555123,213.2,213.19,1.70398429]
[1757382906946,0.03555123,213.2,213.19,4.19398429]
[1757382911362,0.03555123,213.2,213.19,1.70398429]
[1757382911661,0.03555123,213.2,213.19,4.19398429]
[1757382912546,0.03555123,213.2,213.15,53.84]
[1757382912547,0.03555123,213.2,213.16,2.49]
[1757382912751,0.03555123,213.2,213.18,1.70398429]
[1757382913148,0.03555123,213.2,213.14,80.2]
[1757382913352,0.03555123,213.2,213.18,4.19398429]
[1757382915960,0.03555123,213.2,213.18,1.70398429]
[1757382916161,0.03555123,213.2,213.19,2.49]
[1757382918655,0.03555123,213.2,213.19,4.19398429]
[1757382921162,7.24,213.19,213.17,0.03220366]
[1757382923456,1.73953552,213.2,213.17,0.03220366]
[1757382924159,7.24,213.18,213.17,0.03220366]
[1757382929259,7.24,213.18,213.09,2.49]
[1757382929260,7.24,213.18,213.1,1.70398429]
[1757382929464,7.24,213.18,213.12,4.22398429]
[1757382930462,0.03345616,213.17,213.12,4.22398429]
[1757382930668,0.03345616,213.17,213.13,2.52]
[1757382930870,7.27345616,213.17,213.13,2.52]
[1757382931669,0.03345616,213.17,213.06,348.15666178]
[1757382931968,0.03345616,213.17,213.15,4.22398429]
[1757382933977,0.03345616,213.17,213.16,2.52]
[1757382935281,0.03345616,213.17,213.15,1.70398429]
[1757382935483,0.03345616,213.17,213.15,4.22398429]
[1757382938481,5.22551469,213.25,213.16,2.52]
[1757382938683,7.24,213.27,213.23,4.22398429]
[1757382941882,7.24,213.27,213.25,1.70398429]
[1757382943586,7.24,213.27,213.23,2.52]
[1757382943782,5.22551469,213.3,213.24,1.70398429]
[1757382944387,7.31,213.28,213.24,1.70398429]
[1757382944983,7.31,213.29,213.24,1.70398429]
[1757382945284,5.22551469,213.3,213.24,1.70398429]
[1757382945496,7.31,213.29,213.24,1.70398429]
[1757382945680,5.22551469,213.3,213.24,1.70398429]
[1757382946082,12.53551469,213.3,213.24,1.70398429]
[1757382946289,14.23949898,213.3,213.24,1.70398429]
[1757382947385,7.31,213.28,213.24,1.70398429]
[1757382947585,5.22551469,213.29,213.24,1.70398429]
[1757382947888,7.31,213.28,213.24,1.70398429]
[1757382948885,5.22551469,213.29,213.24,1.70398429]
[1757382949089,7.31,213.28,213.24,1.70398429]
[1757382949390,5.22551469,213.29,213.24,1.70398429]
[1757382949794,5.22551469,213.29,213.22,2.5]
[1757382949992,7.31,213.28,213.23,1.70398429]
[1757382950388,7.31,213.28,213.22,2.5]
[1757382961299,7.31,213.28,213.22,5.16209521]
[1757382965501,7.31,213.31,213.19,123.66209521]
[1757382965797,2.66209521,213.32,213.19,123.66209521]
[1757382966000,7.31,213.31,213.19,2.66209521]
[1757382968598,7.31,213.28,213.19,2.66209521]
[1757382969598,7.31,213.28,213.2,2.5]
[1757382972298,5.23106514,213.27,213.2,2.5]
[1757382972499,7.31,213.28,213.2,2.5]
[1757382974202,9.97209521,213.28,213.15,2.51]
[1757382976201,2.66209521,213.25,213.15,2.51]
[1757382976402,7.26,213.24,213.15,2.51]
[1757382977404,5.23610354,213.23,213.15,2.51]
[1757382977802,12.49610354,213.24,213.15,2.51]
[1757382979206,7.26,213.22,213.15,2.51]
[1757382979507,12.49610354,213.22,213.15,2.51]
[1757382982305,5.23610354,213.21,213.15,2.51]
[1757382982606,7.26,213.2,213.15,2.51]
[1757382982902,5.23610354,213.21,213.15,2.66209521]
[1757382983103,7.26,213.28,213.19,2.51]
[1757382983307,7.26,213.28,213.23,2.66209521]
[1757382984007,7.26,213.28,213.24,2.51]
[1757382984207,7.26,213.28,213.23,2.66209521]
[1757382984504,7.26,213.28,213.24,2.51]
[1757382985300,7.26,213.28,213.23,2.66209521]
[1757382985605,7.26,213.28,213.24,2.51]
[1757382985807,7.26,213.28,213.23,2.66209521]
[1757382986206,7.26,213.28,213.24,2.51]
[1757382986610,5.23610354,213.3,213.24,2.51]
[1757382987905,5.23610354,213.3,213.27,2.51]
[1757382988910,12.49610354,213.3,213.27,2.51]
[1757382989106,5.23610354,213.3,213.26,2.66209521]
[1757382989410,7.26,213.28,213.24,2.51]
[1757382989804,12.49610354,213.3,213.24,2.51]
[1757382992311,7.26,213.3,213.24,2.51]
[1757382992913,5.23610354,213.31,213.29,2.66209521]
[1757382993109,12.49610354,213.34,213.29,2.66209521]
[1757382993306,12.49610354,213.34,213.3,2.51]
[1757382993811,5.23610354,213.34,213.3,2.51]
[1757382994015,7.26,213.33,213.3,2.51]
[1757382995010,5.23610354,213.36,213.29,2.66209521]
[1757382995217,7.26,213.36,213.29,5.17209521]
[1757382997825,7.26,213.37,213.32,2.66209521]
[1757382998023,7.26,213.37,213.33,2.51]
[1757382998218,181.64619435,213.38,213.33,2.51]
[1757382998421,7.26,213.39,213.32,5.17209521]
[1757382998921,7.26,213.42,213.36,2.51]
[1757382999124,7.26,213.42,213.39,2.51]
[1757382999427,0.02993581,213.41,213.39,2.51]
[1757383000123,0.02993581,213.41,213.38,2.66209521]
[1757383000517,0.02993581,213.41,213.39,2.51]
[1757383000924,0.02993581,213.41,213.39,2.5]
[1757383001125,0.02993581,213.41,213.38,2.66209521]
[1757383001425,0.02993581,213.41,213.39,2.5]
[1757383001820,0.02993581,213.41,213.38,2.66209521]
[1757383002323,0.02993581,213.41,213.39,2.5]
[1757383003325,0.02993581,213.41,213.38,2.66209521]
[1757383003528,0.02993581,213.41,213.39,2.49]
[1757383003716,0.02993581,213.41,213.38,2.66209521]
[1757383003918,0.02993581,213.41,213.39,2.49]
[1757383005021,0.02993581,213.41,213.38,2.66209521]
[1757383006127,0.02993581,213.41,213.39,2.49]
[1757383006325,0.02993581,213.41,213.38,2.66209521]
[1757383006527,0.02993581,213.41,213.39,2.49]
[1757383006728,0.02993581,213.41,213.38,2.66209521]
[1757383007433,0.02993581,213.41,213.39,2.49]
[1757383007728,0.02993581,213.41,213.38,2.66209521]
[1757383007926,0.02993581,213.41,213.39,2.49]
[1757383008730,0.02993581,213.41,213.4,2.49]
[1757383010429,0.02993581,213.41,213.4,4.19047419]
[1757383010631,7.26,213.46,213.4,4.19047419]
[1757383010829,7.26,213.46,213.45,1.70047419]
[1757383011026,7.07,213.49,213.43,1.70047419]
[1757383011625,8.77047419,213.52,213.45,1.70047419]
[1757383014228,8.77047419,213.52,213.44,0.03483611]
[1757383014433,8.77047419,213.52,213.46,1.70047419]
[1757383016639,7.07,213.49,213.44,0.03483611]
[1757383022238,1.70047419,213.48,213.44,0.03483611]
[1757383022445,7.07,213.45,213.39,1.70047419]
[1757383023241,7.07,213.43,213.37,1.70047419]
[1757383023549,7.07,213.41,213.35,1.70047419]
[1757383023735,7.07,213.41,213.34,1.70047419]
[1757383024740,7.07,213.41,213.35,2.52]
[1757383024946,0.03566143,213.42,213.39,2.52]
[1757383025245,1.70047419,213.47,213.4,1.70047419]
[1757383025437,7.07,213.44,213.3,2.52]
[1757383025644,0.03216175,213.43,213.38,1.70047419]
[1757383025838,7.07,213.42,213.38,1.70047419]
[1757383026039,7.07,213.44,213.38,1.70047419]
[1757383026238,0.03378297,213.42,213.38,1.70047419]
[1757383026440,7.07,213.41,213.38,1.70047419]
[1757383026741,7.07,213.41,213.38,4.22047419]
[1757383027042,7.10378297,213.42,213.39,2.52]
[1757383027637,0.03378297,213.42,213.39,2.52]
[1757383027948,7.10378297,213.42,213.39,2.52]
[1757383028147,7.10378297,213.42,213.38,1.70047419]
[1757383028348,7.07,213.41,213.38,4.22047419]
[1757383029648,0.03378297,213.42,213.39,2.52]
[1757383029844,0.03378297,213.42,213.4,1.70047419]
[1757383032447,7.10378297,213.42,213.39,2.52]
[1757383033554,7.59,213.41,213.39,2.52]
[1757383033948,7.59,213.41,213.38,1.70047419]
[1757383034151,7.59,213.41,213.38,4.24047419]
[1757383034748,0.03378297,213.42,213.39,2.54]
[1757383034949,7.62378297,213.42,213.39,2.54]
[1757383037654,7.59,213.41,213.35,2.54]
[1757383037848,7.59,213.41,213.38,1.70047419]
[1757383038051,7.59,213.41,213.38,4.24047419]
[1757383040158,0.03378297,213.42,213.38,4.24047419]
[1757383040351,7.59,213.41,213.38,1.70047419]
[1757383040552,0.03378297,213.42,213.38,1.70047419]
[1757383040859,12.82610354,213.41,213.34,1.70047419]
[1757383041651,12.82610354,213.41,213.37,2.54]
[1757383041855,12.85988651,213.42,213.39,4.24047419]
[1757383042259,5.26988651,213.42,213.39,1.70047419]
[1757383042460,7.59,213.41,213.39,1.70047419]
[1757383042859,7.59,213.41,213.36,2.54]
[1757383043063,7.59,213.4,213.36,1.70047419]
[1757383043258,5.23610354,213.4,213.36,1.70047419]
[1757383043458,7.59,213.39,213.36,1.70047419]
[1757383043659,5.23610354,213.4,213.36,1.70047419]
[1757383044056,7.59,213.39,213.35,1.70047419]
[1757383044258,5.23610354,213.4,213.35,1.70047419]
[1757383044754,7.59,213.39,213.35,1.70047419]
[1757383044953,7.59,213.41,213.37,4.24047419]
[1757383045464,7.59,213.41,213.38,2.54]
[1757383045667,7.62601365,213.41,213.38,2.54]
[1757383049566,0.03601365,213.41,213.37,1.70047419]
[1757383049761,7.62601365,213.41,213.37,4.24047419]
[1757383051869,7.59,213.4,213.37,4.24047419]
[1757383052373,0.03601365,213.41,213.37,1.70047419]
[1757383052576,5.27211719,213.41,213.36,1.70047419]
[1757383052764,7.59,213.39,213.36,1.70047419]
[1757383052966,5.23610354,213.4,213.36,1.70047419]
[1757383053364,7.59,213.39,213.36,1.70047419]
[1757383053572,5.23610354,213.4,213.36,1.70047419]
[1757383053973,7.59,213.39,213.36,1.70047419]
[1757383054975,12.82610354,213.38,213.36,1.70047419]
[1757383055279,7.59,213.37,213.36,1.70047419]
[1757383059676,12.82610354,213.38,213.36,1.70047419]
[1757383061082,7.59,213.38,213.36,1.70047419]
[1757383061581,7.59,213.38,213.36,4.23047419]
[1757383061883,5.23610354,213.39,213.37,2.53]
[1757383062185,12.82610354,213.4,213.38,1.70047419]
[1757383063485,5.23610354,213.4,213.38,4.25047419]
[1757383064384,12.42610354,213.4,213.38,4.25047419]
[1757383064990,7.19,213.4,213.38,4.25047419]
[1757383065680,7.19,213.4,213.38,1.70047419]
[1757383067284,7.19,213.4,213.38,4.25047419]
[1757383068089,7.19,213.4,213.38,1.70047419]
[1757383070584,5.27211719,213.41,213.38,1.70047419]
[1757383070782,7.19,213.4,213.35,1.70047419]
[1757383070987,5.23610354,213.39,213.35,1.70047419]
[1757383071288,7.19,213.38,213.35,1.70047419]
[1757383071484,5.23610354,213.39,213.35,1.70047419]
[1757383071789,7.19,213.38,213.35,1.70047419]
[1757383072381,5.27211719,213.41,213.34,5.20878157]
[1757383072588,7.19,213.4,213.34,5.20878157]
[1757383074397,12.42610354,213.4,213.34,5.20878157]
[1757383075195,7.19,213.4,213.34,5.20878157]
[1757383076795,12.42610354,213.4,213.34,2.65878157]
[1757383077996,7.19,213.38,213.34,2.65878157]
[1757383079195,5.23610354,213.39,213.33,115.08]
[1757383079697,7.19,213.38,213.33,115.08]
[1757383079898,12.42610354,213.39,213.33,117.63]
[1757383080197,5.23610354,213.4,213.35,2.55]
[1757383080391,5.23610354,213.4,213.34,2.65878157]
[1757383080593,7.19,213.39,213.34,2.65878157]
[1757383080995,12.42610354,213.4,213.34,5.20878157]
[1757383081397,7.19,213.4,213.34,5.20878157]
[1757383081892,7.19,213.4,213.34,2.65878157]
[1757383082093,7.19,213.4,213.35,2.55]
[1757383082295,12.46211719,213.41,213.35,2.55]
[1757383084596,0.03601365,213.41,213.4,2.65878157]
[1757383084897,0.03601365,213.41,213.4,120.26878157]
[1757383085203,5.23610354,213.47,213.4,120.26878157]
[1757383085398,7.19,213.47,213.43,5.20878157]
[1757383085596,7.19,213.46,213.43,2.65878157]
[1757383086495,5.23610354,213.48,213.43,2.65878157]
[1757383087394,7.19,213.47,213.43,2.65878157]
[1757383087602,5.23610354,213.48,213.43,2.65878157]
[1757383088097,7.19,213.47,213.43,2.65878157]
[1757383088295,7.19,213.47,213.42,0.0310669]
[1757383088499,12.42610354,213.47,213.42,0.0310669]
[1757383088704,12.42610354,213.47,213.35,121.0]
[1757383088705,7.19,213.45,213.34,2.55]
[1757383088898,7.19,213.42,213.35,117.69878157]
[1757383089401,7.19,213.42,213.35,2.65878157]
[1757383089596,5.23610354,213.41,213.35,2.65878157]
[1757383089803,7.19,213.4,213.35,2.65878157]
[1757383090003,7.19,213.4,213.31,2.58]
[1757383090203,7.19,213.39,213.32,117.69878157]
[1757383090504,7.19,213.39,213.32,2.65878157]
[1757383090704,7.19,213.39,213.32,117.69878157]
[1757383091105,5.23610354,213.4,213.32,117.69878157]
[1757383091303,7.19,213.39,213.32,117.69878157]
[1757383094308,7.19,213.39,213.32,2.65878157]
[1757383094499,12.42610354,213.39,213.32,117.67878157]
[1757383095106,7.6,213.36,213.33,2.55]
[1757383095311,5.23610354,213.37,213.32,2.65878157]
[1757383095507,5.23610354,213.37,213.3,2.55]
[1757383095508,12.83610354,213.36,213.3,2.55]
[1757383097310,12.83610354,213.36,213.3,117.57]
[1757383098409,12.83610354,213.34,213.3,2.55]
[1757383098604,7.6,213.33,213.3,2.55]
[1757383099011,7.6,213.33,213.29,117.67878157]
[1757383099210,7.6,213.33,213.29,120.22878157]
[1757383101409,7.6,213.33,213.29,117.67878157]
[1757383101603,7.6,213.33,213.3,2.55]
[1757383103707,5.23610354,213.35,213.29,117.67878157]
[1757383104012,12.83610354,213.35,213.29,117.67878157]
[1757383104908,7.6,213.35,213.29,117.67878157]
[1757383109511,7.6,213.38,213.3,2.55]
[1757383115107,12.83610354,213.38,213.3,2.55]
[1757383116415,7.6,213.38,213.3,2.55]
[1757383119513,7.6,213.38,213.29,117.67878157]
[1757383119514,5.23610354,213.38,213.27,248.12146992]
[1757383119721,2.65878157,213.39,213.26,2.56]
[1757383119722,5.23610354,213.37,213.28,115.0]
[1757383120420,7.6,213.36,213.28,115.0]
[1757383120919,5.23610354,213.37,213.28,115.0]
[1757383121115,7.6,213.36,213.28,115.0]
[1757383121617,7.6,213.36,213.28,117.56]
[1757383122816,7.6,213.36,213.28,117.65878157]
[1757383123011,12.83610354,213.39,213.32,2.56]
[1757383124624,5.23610354,213.39,213.33,114.98]
[1757383124922,5.23610354,213.45,213.38,2.55]
[1757383126226,7.54,213.46,213.41,2.55]
[1757383126411,5.23610354,213.47,213.41,2.55]
[1757383126617,12.77610354,213.47,213.41,2.55]
[1757383126825,7.54,213.47,213.41,2.55]
[1757383127825,0.03462869,213.46,213.41,2.55]
[1757383128024,7.54,213.45,213.41,2.55]
[1757383128930,0.03462869,213.46,213.29,2.65878157]
[1757383129133,12.77610354,213.45,213.36,2.65878157]
[1757383129332,12.77610354,213.45,213.37,2.55]
[1757383131434,5.23610354,213.44,213.37,2.55]
[1757383131731,12.77610354,213.45,213.37,2.55]
[1757383132432,5.23610354,213.45,213.41,1.70094402]
[1757383132839,5.23610354,213.46,213.41,1.70094402]
[1757383133038,7.54,213.45,213.43,1.70094402]
[1757383133638,5.23610354,213.47,213.43,1.70094402]
[1757383133639,12.77610354,213.48,213.43,1.70094402]
[1757383133837,7.54,213.48,213.45,1.70094402]
[1757383134038,12.77610354,213.48,213.45,1.70094402]
[1757383134233,7.54,213.48,213.45,1.70094402]
[1757383134433,7.54,213.48,213.47,1.70094402]
[1757383135033,12.77610354,213.48,213.47,1.70094402]
[1757383136233,7.54,213.47,213.4,1.70094402]
[1757383136433,5.22752034,213.45,213.44,1.70094402]
[1757383136636,12.76752034,213.46,213.44,1.70094402]
[1757383137541,7.54,213.45,213.44,1.70094402]
[1757383138036,7.54,213.45,213.42,1.70094402]
[1757383140041,7.54,213.45,213.42,4.25094402]
[1757383140240,5.22752034,213.47,213.42,1.70094402]
[1757383140537,7.54,213.46,213.42,1.70094402]
[1757383140739,7.54,213.46,213.44,1.70094402]
[1757383141945,5.22752034,213.48,213.44,1.70094402]
[1757383142239,6.92846436,213.48,213.42,1.70094402]
[1757383142630,7.54,213.47,213.42,1.70094402]
[1757383142831,6.92846436,213.48,213.42,1.70094402]
[1757383143031,5.22752034,213.48,213.42,1.70094402]
[1757383143534,5.22752034,213.48,213.38,123.55]
[1757383143739,12.76752034,213.47,213.41,1.70094402]
[1757383144342,5.22752034,213.46,213.41,1.70094402]
[1757383144543,7.54,213.45,213.41,1.70094402]
[1757383144943,7.54,213.44,213.41,1.70094402]
[1757383145338,7.54,213.44,213.38,1.70094402]
[1757383145545,7.54,213.41,213.31,2.55]
[1757383145843,5.22752034,213.41,213.36,1.70094402]
[1757383146341,5.26047959,213.41,213.36,1.70094402]
[1757383146539,7.54,213.4,213.36,1.70094402]
[1757383147041,5.26047959,213.41,213.36,1.70094402]
[1757383147342,7.54,213.4,213.36,1.70094402]
[1757383147644,5.26047959,213.41,213.36,1.70094402]
[1757383148142,12.76752034,213.4,213.36,0.03103285]
[1757383148339,7.54,213.39,213.36,0.03103285]
[1757383148637,5.22752034,213.4,213.36,0.03103285]
[1757383148837,5.22752034,213.39,213.36,0.03103285]
[1757383149042,7.54,213.38,213.36,0.03103285]
[1757383149538,7.54,213.37,213.36,0.03103285]
[1757383157441,9.70094402,213.37,213.27,1.70094402]
[1757383157743,7.39,213.32,213.27,1.70094402]
[1757383158443,1.70094402,213.33,213.27,1.70094402]
[1757383158648,0.03321321,213.32,213.27,1.70094402]
[1757383158844,7.39,213.31,213.27,1.70094402]
[1757383159041,0.03321321,213.32,213.27,1.70094402]
[1757383159242,7.39,213.31,213.27,1.70094402]
[1757383160146,0.03321321,213.32,213.27,1.70094402]
[1757383161438,7.39,213.31,213.27,1.70094402]
[1757383161942,0.03321321,213.32,213.27,1.70094402]
[1757383162246,7.39,213.31,213.27,1.70094402]
[1757383162449,0.03321321,213.32,213.27,1.70094402]
[1757383162840,0.03321321,213.32,213.3,1.70094402]
[1757383163151,0.03321321,213.32,213.3,4.30094402]
[1757383163354,7.39,213.31,213.25,2.6]
[1757383163544,7.39,213.31,213.27,1.70094402]
[1757383163850,0.03321321,213.32,213.27,1.70094402]
[1757383164048,7.39,213.31,213.27,1.70094402]
[1757383164643,0.03321321,213.32,213.27,1.70094402]
[1757383164839,7.39,213.31,213.27,1.70094402]
[1757383165045,9.09094402,213.31,213.25,2.6]
[1757383165251,1.70094402,213.29,213.24,121.0]
[1757383165750,7.39,213.28,213.24,123.6]
[1757383168350,7.39,213.28,213.25,2.6]
[1757383171754,9.12415723,213.32,213.25,1.70094402]
[1757383171950,1.70094402,213.3,213.25,1.70094402]
[1757383172251,7.39,213.29,213.25,4.30094402]
[1757383172951,7.39,213.29,213.26,2.6]
[1757383174147,7.39,213.31,213.26,2.6]
[1757383174653,1.73415723,213.32,213.26,2.6]
[1757383174853,7.39,213.31,213.26,2.6]
[1757383175048,1.73415723,213.32,213.26,2.6]
[1757383175257,7.39,213.31,213.26,2.6]
[1757383175557,1.73415723,213.32,213.26,2.6]
[1757383175857,7.39,213.31,213.26,2.6]
[1757383176356,1.73415723,213.32,213.26,2.6]
[1757383176857,7.39,213.31,213.26,2.6]
[1757383177458,7.39,213.3,213.26,2.6]
[1757383178660,1.73415723,213.32,213.26,2.6]
[1757383179056,7.39,213.31,213.26,2.6]
[1757383180360,1.73415723,213.32,213.26,2.6]
[1757383180658,7.39,213.31,213.26,2.6]
[1757383180851,1.73415723,213.32,213.26,2.6]
[1757383181656,7.39,213.31,213.26,2.6]
[1757383181853,1.73415723,213.32,213.26,2.6]
[1757383182262,7.39,213.31,213.26,2.6]
[1757383183363,7.15,213.31,213.26,2.6]
[1757383183564,1.73415723,213.32,213.26,2.6]
[1757383183766,7.15,213.31,213.26,2.6]
[1757383184161,1.73415723,213.32,213.26,2.6]
[1757383184363,7.15,213.31,213.25,4.29094402]
[1757383188069,7.15,213.31,213.25,2.59]
[1757383188272,7.15,213.31,213.25,4.29094402]
[1757383192374,7.15,213.31,213.25,2.59]
[1757383195172,12.37752034,213.31,213.25,2.59]
[1757383195777,7.15,213.31,213.25,2.59]
[1757383196280,7.15,213.31,213.26,2.66114845]
[1757383196672,7.15,213.31,213.27,2.59]
[1757383197173,5.26073355,213.32,213.27,2.59]
[1757383197373,0.03321321,213.32,213.27,2.59]
[1757383197574,0.03321321,213.32,213.29,2.66114845]
[1757383197773,0.03321321,213.32,213.3,2.59]
[1757383197976,0.03321321,213.32,213.29,2.66114845]
[1757383198374,0.03321321,213.32,213.3,2.59]
[1757383198677,0.03321321,213.32,213.29,2.66114845]
[1757383200081,0.03321321,213.32,213.3,2.59]
[1757383200978,0.03321321,213.32,213.29,2.66114845]
[1757383201580,0.03321321,213.32,213.3,2.59]
[1757383201975,7.15,213.31,213.29,2.66114845]
[1757383202175,0.03321321,213.32,213.29,5.25114845]
[1757383202375,0.03321321,213.32,213.29,2.66114845]
[1757383202376,7.18321321,213.32,213.29,2.66114845]
[1757383202576,7.18321321,213.32,213.3,2.59]
[1757383203178,0.03321321,213.32,213.24,2.66114845]
[1757383203373,12.37752034,213.31,213.24,5.25114845]
[1757383204480,12.37752034,213.31,213.24,126.25114845]
[1757383205076,7.15,213.31,213.25,114.86]
[1757383206484,7.15,213.31,213.24,126.25114845]
[1757383206786,7.15,213.31,213.25,114.86]
[1757383207484,7.15,213.31,213.24,123.59]
[1757383207681,7.15,213.3,213.24,238.45]
[1757383208280,5.22752034,213.31,213.25,2.59]
[1757383208785,5.26073355,213.32,213.25,2.59]
[1757383209484,12.37752034,213.31,213.25,2.59]
[1757383209887,12.37752034,213.31,213.25,117.43]
[1757383210374,12.37752034,213.31,213.24,123.66114845]
[1757383210375,7.15,213.29,213.24,114.84]
[1757383210581,12.37752034,213.29,213.22,2.59]
[1757383210883,7.15,213.28,213.23,114.84]
[1757383211079,5.22752034,213.29,213.23,114.84]
[1757383211284,7.15,213.27,213.24,2.59]
[1757383214085,7.32,213.27,213.24,2.59]
[1757383216400,0.03526606,213.28,213.24,2.59]
[1757383216594,0.03526606,213.28,213.23,114.84]
[1757383216595,7.35526606,213.28,213.23,114.84]
[1757383216793,7.35526606,213.28,213.24,2.59]
[1757383216996,7.32,213.27,213.24,2.59]
[1757383217400,7.32,213.27,213.23,114.84]
[1757383217698,0.03526606,213.28,213.24,2.59]
[1757383218200,0.03526606,213.28,213.27,2.59]
[1757383218499,0.03526606,213.28,213.27,117.43]
[1757383220404,5.22752034,213.35,213.28,2.59]
[1757383220601,5.22752034,213.35,213.32,2.59]
[1757383220900,2.66114845,213.43,213.32,117.43]
[1757383220901,12.54752034,213.36,213.32,117.43]
[1757383221102,7.32,213.36,213.33,2.59]
[1757383221299,5.22752034,213.37,213.32,114.84]
[1757383221494,5.22752034,213.37,213.33,2.59]
[1757383221697,2.66114845,213.43,213.32,114.84]
[1757383221698,5.22752034,213.38,213.32,114.84]
[1757383222100,5.22752034,213.39,213.35,2.59]
[1757383222291,5.22752034,213.41,213.35,2.59]
[1757383222496,5.22752034,213.41,213.37,2.66114845]
[1757383222698,12.54752034,213.42,213.39,2.59]
[1757383223501,7.32,213.42,213.39,2.59]
[1757383225502,5.22752034,213.44,213.38,117.41]
[1757383225699,12.54752034,213.45,213.41,2.59]
[1757383225906,7.32,213.45,213.41,2.59]
[1757383226102,5.22752034,213.46,213.41,2.59]
[1757383226296,7.32,213.45,213.41,2.59]
[1757383226602,5.22752034,213.46,213.41,2.59]
[1757383226903,7.32,213.45,213.41,2.59]
[1757383227295,7.32,213.45,213.4,2.66114845]
[1757383227494,12.54752034,213.48,213.41,2.59]
[1757383227697,7.32,213.48,213.41,2.59]
[1757383229706,7.32,213.48,213.43,2.66114845]
[1757383229907,7.32,213.48,213.44,2.58]
[1757383230207,7.32,213.52,213.44,117.36]
[1757383231207,5.22752034,213.53,213.44,117.36]
[1757383231407,5.22752034,213.54,213.44,117.36]
[1757383231704,12.54752034,213.53,213.44,2.58]
[1757383232209,7.32,213.53,213.44,2.58]
[1757383232508,7.84128051,213.57,213.44,2.58]
[1757383232509,7.32,213.5,213.44,2.58]
[1757383235501,7.32,213.5,213.41,121.0]
[1757383235702,0.03304916,213.51,213.41,121.0]
[1757383235905,7.32,213.5,213.41,121.0]
[1757383236105,7.32,213.5,213.42,5.24114845]
[1757383237410,7.32,213.5,213.43,2.58]
[1757383241211,7.32,213.5,213.43,117.3]
[1757383242916,7.32,213.5,213.43,238.3]
[1757383246118,7.35,213.5,213.43,123.58]
[1757383246413,7.35,213.5,213.43,235.72]
[1757383246715,7.35,213.5,213.44,2.59]
[1757383248216,0.03304916,213.51,213.45,2.66114845]
[1757383248713,0.03304916,213.51,213.46,2.59]
[1757383250217,0.03304916,213.51,213.45,123.66114845]
[1757383250516,7.38304916,213.51,213.47,2.59]
[1757383250912,7.38304916,213.51,213.46,114.7]
[1757383251108,0.03304916,213.51,213.47,2.59]
[1757383251313,0.03304916,213.51,213.46,114.7]
[1757383251507,0.03304916,213.51,213.47,2.59]
[1757383251910,0.03304916,213.51,213.46,114.7]
[1757383252115,0.03304916,213.51,213.47,2.59]